Workbook

Sheet Cover
A3: Navigator
C5: =Client_Name -> ICAEW
C6: =Model_Name -> SP - Using OFFSET for Depreciation.xlsm
C14: Primary Developer: Liam Bastick
C16: General Cover Notes:
C17: How OFFSET can make depreciation calculations easier
C18: (and assist you in transposing data).
C21: Any queries, please e-mail: | G21: liam.bastick@sumproduct.com
C22: Website: | G22: www.sumproduct.com

Sheet Navigator
A1: Navigator
A2: =Model_Name -> SP - Using OFFSET for Depreciation.xlsm
A3: Navigator
E4: Error Checks: | G4: =Overall_Error_Check -> 0
B7: 1 | C7: Table of Contents
F9: Cover
F10: Style Guide
F11: Depreciation Calculation
F12: Model Parameters
F13: Timing
F14: Error Checks

Sheet Style Guide
A1: =IF(ISERROR(RIGHT(CELL("filename",A1),LEN(CELL("filename",A1))-FIND("]",CELL("filename",A1)))), "", RIGHT(CELL("filename",A1),LEN(CELL("filename",A1))-FIND("]",CELL("filename",A1)))) -> Style Guide
A2: =Model_Name -> SP - Using OFFSET for Depreciation.xlsm
A3: Navigator
E4: Error Checks: | I4: =Overall_Error_Check -> 0
B6: =MAX($B$5:$B5)+1 -> 1 | C6: Formatting of Headers / Dividers
C8: Description | I8: Display | K8: Style Name
C10: Sheet Title | I10: =C10 -> Sheet Title | K10: Sheet Title
C11: Model Name | I11: =C11 -> Model Name | K11: Model Name
C13: Header 1 | I13: =C13 -> Header 1 | K13: Header 1
C14: Header 2 | I14: =C14 -> Header 2 | K14: Header 2
C15: Header 3 | I15: =C15 -> Header 3 | K15: Header 3
C16: Header 4 | I16: =C16 -> Header 4 | K16: Header 4
C18: Notes | I18: =C18 -> Notes | K18: Notes
C20: Table Heading | I20: =C20 -> Table Heading | K20: Table Heading
B23: =MAX($B$5:$B22)+1 -> 2 | C23: Individual Cell Styles
C25: Description | I25: Display | K25: Style Name
C27: Assumption | I27: Assumption | K27: =C27 -> Assumption
C29: Constraint | I29: =C29 -> Constraint | K29: =C29 -> Constraint
C31: Empty | K31: =C31 -> Empty
C33: Error Check | I33: 0 | K33: =C33 -> Error Check
C35: Hyperlink | I35: Hyperlink | K35: =C35 -> Hyperlink
C37: Internal Reference | I37: ='Error Checks'!E12 -> Depreciation Reconciles | K37: =C37 -> Internal Reference
C39: Line Calculation | I39: 77 | K39: Line Calc
C41: Line Total | I41: =I39 -> 77 | K41: =C41 -> Line Total
C43: Parameter | I43: 365 | K43: =C43 -> Parameter
C45: Range Name Description | I45: Not_Named | K45: =C45 -> Range Name Description
C47: Row Reference | I47: =ROW(C47) -> 47 | K47: Row Ref
C49: Row Summary | I49: =I41 -> 77 | K49: =C49 -> Row Summary
C51: Units | I51: A$ | K51: =C51 -> Units
C53: WIP | K53: =C53 -> WIP
B56: =MAX($B$5:$B55)+1 -> 3 | C56: Numerical Styles
C58: Description | I58: Display | K58: Style Name
C60: Comma | I60: 123456.789 | K60: =C60 -> Comma
C62: Comma [0] | I62: -123456.789 | K62: Comma [0]
C64: Currency | I64: 123456.789 | K64: Currency
C66: Currency [0] | I66: 123456.789 | K66: Currency [0]
C68: Date | I68: =TODAY() -> 2016-06-12 | K68: =C68 -> Date
C70: Date Heading | I70: =TODAY() -> 2016-06-12 | K70: =C70 -> Date Heading
C72: Numbers 0 | I72: -123456.789 | K72: =C72 -> Numbers 0
C74: Percent | I74: 0.5 | K74: =C74 -> Percent

Sheet Depreciation Calculation
A1: =IF(ISERROR(RIGHT(CELL("filename",A1),LEN(CELL("filename",A1))-FIND("]",CELL("filename",A1)))), "", RIGHT(CELL("filename",A1),LEN(CELL("filename",A1))-FIND("]",CELL("filename",A1)))) -> Depreciation Calculation
A2: =Model_Name -> SP - Using OFFSET for Depreciation.xlsm
A3: Navigator
B4: Error Checks: | F4: =Overall_Error_Check -> 0
J5: =Timing!J5 -> 2017-12-31 | K5: =Timing!K5 -> 2018-12-31 | L5: =Timing!L5 -> 2019-12-31 | M5: =Timing!M5 -> 2020-12-31 | N5: =Timing!N5 -> 2021-12-31 | O5: =Timing!O5 -> 2022-12-31 | P5: =Timing!P5 -> 2023-12-31 | Q5: =Timing!Q5 -> 2024-12-31 | R5: =Timing!R5 -> 2025-12-31 | S5: =Timing!S5 -> 2026-12-31 | T5: =Timing!T5 -> 2027-12-31 | U5: =Timing!U5 -> 2028-12-31
C6: Start Date | J6: =Timing!J6 -> 2017-01-01 | K6: =Timing!K6 -> 2018-01-01 | L6: =Timing!L6 -> 2019-01-01 | M6: =Timing!M6 -> 2020-01-01 | N6: =Timing!N6 -> 2021-01-01 | O6: =Timing!O6 -> 2022-01-01 | P6: =Timing!P6 -> 2023-01-01 | Q6: =Timing!Q6 -> 2024-01-01 | R6: =Timing!R6 -> 2025-01-01 | S6: =Timing!S6 -> 2026-01-01 | T6: =Timing!T6 -> 2027-01-01 | U6: =Timing!U6 -> 2028-01-01
C7: End Date | J7: =Timing!J7 -> 2017-12-31 | K7: =Timing!K7 -> 2018-12-31 | L7: =Timing!L7 -> 2019-12-31 | M7: =Timing!M7 -> 2020-12-31 | N7: =Timing!N7 -> 2021-12-31 | O7: =Timing!O7 -> 2022-12-31 | P7: =Timing!P7 -> 2023-12-31 | Q7: =Timing!Q7 -> 2024-12-31 | R7: =Timing!R7 -> 2025-12-31 | S7: =Timing!S7 -> 2026-12-31 | T7: =Timing!T7 -> 2027-12-31 | U7: =Timing!U7 -> 2028-12-31
C8: Number of Days | J8: =Timing!J8 -> 365 | K8: =Timing!K8 -> 365 | L8: =Timing!L8 -> 365 | M8: =Timing!M8 -> 366 | N8: =Timing!N8 -> 365 | O8: =Timing!O8 -> 365 | P8: =Timing!P8 -> 365 | Q8: =Timing!Q8 -> 366 | R8: =Timing!R8 -> 365 | S8: =Timing!S8 -> 365 | T8: =Timing!T8 -> 365 | U8: =Timing!U8 -> 366
C9: Counter | J9: =Timing!J9 -> 1 | K9: =Timing!K9 -> 2 | L9: =Timing!L9 -> 3 | M9: =Timing!M9 -> 4 | N9: =Timing!N9 -> 5 | O9: =Timing!O9 -> 6 | P9: =Timing!P9 -> 7 | Q9: =Timing!Q9 -> 8 | R9: =Timing!R9 -> 9 | S9: =Timing!S9 -> 10 | T9: =Timing!T9 -> 11 | U9: =Timing!U9 -> 12
B11: =MAX($B$10:$B10)+1 -> 1 | C11: =A1 -> Depreciation Calculation
C13: Assumptions
E15: Economic Life | G15: Years | H15: 5
E17: Annual Depreciation Rate | G17: % | H17: =IF(Economic_Life,1/Economic_Life,) -> 0.2
J19: =N(I19)+1 -> 1 | K19: =N(J19)+1 -> 2 | L19: =N(K19)+1 -> 3 | M19: =N(L19)+1 -> 4 | N19: =N(M19)+1 -> 5 | O19: =N(N19)+1 -> 6 | P19: =N(O19)+1 -> 7 | Q19: =N(P19)+1 -> 8 | R19: =N(Q19)+1 -> 9 | S19: =N(R19)+1 -> 10 | T19: =N(S19)+1 -> 11 | U19: =N(T19)+1 -> 12
E21: Capital Expenditure | G21: £'000 | J21: 100 | K21: 200 | L21: 300 | M21: 400 | N21: 500 | O21: 600 | P21: 700 | Q21: 800 | R21: 900 | S21: 1000 | T21: 1100 | U21: 1200
C24: Depreciation Calculations
D26: Typical
J28: =N(I28)+1 -> 1 | K28: =N(J28)+1 -> 2 | L28: 3 | M28: 4 | N28: 5 | O28: 6 | P28: 7 | Q28: 8 | R28: 9 | S28: 10 | T28: 11 | U28: 12
E30: =ROWS($D$30:$D30) -> 1 | G30: £'000 | H30: =OFFSET(BC_Capex,,$E30) -> 100 | J30: =IF(J$28>=$E30,MIN($H30-SUM($I30:I30),$H30*Depn_Rate),) -> 20 | K30: =IF(K$28>=$E30,MIN($H30-SUM($I30:J30),$H30*Depn_Rate),) -> 20 | L30: =IF(L$28>=$E30,MIN($H30-SUM($I30:K30),$H30*Depn_Rate),) -> 20 | M30: =IF(M$28>=$E30,MIN($H30-SUM($I30:L30),$H30*Depn_Rate),) -> 20 | N30: =IF(N$28>=$E30,MIN($H30-SUM($I30:M30),$H30*Depn_Rate),) -> 20 | O30: =IF(O$28>=$E30,MIN($H30-SUM($I30:N30),$H30*Depn_Rate),) -> 0 | P30: =IF(P$28>=$E30,MIN($H30-SUM($I30:O30),$H30*Depn_Rate),) -> 0 | Q30: =IF(Q$28>=$E30,MIN($H30-SUM($I30:P30),$H30*Depn_Rate),) -> 0 | R30: =IF(R$28>=$E30,MIN($H30-SUM($I30:Q30),$H30*Depn_Rate),) -> 0 | S30: =IF(S$28>=$E30,MIN($H30-SUM($I30:R30),$H30*Depn_Rate),) -> 0 | T30: =IF(T$28>=$E30,MIN($H30-SUM($I30:S30),$H30*Depn_Rate),) -> 0 | U30: =IF(U$28>=$E30,MIN($H30-SUM($I30:T30),$H30*Depn_Rate),) -> 0
E31: =ROWS($D$30:$D31) -> 2 | G31: £'000 | H31: 200 | J31: =IF(J$28>=$E31,MIN($H31-SUM($I31:I31),$H31*Depn_Rate),) -> 0 | K31: =IF(K$28>=$E31,MIN($H31-SUM($I31:J31),$H31*Depn_Rate),) -> 40 | L31: =IF(L$28>=$E31,MIN($H31-SUM($I31:K31),$H31*Depn_Rate),) -> 40 | M31: =IF(M$28>=$E31,MIN($H31-SUM($I31:L31),$H31*Depn_Rate),) -> 40 | N31: =IF(N$28>=$E31,MIN($H31-SUM($I31:M31),$H31*Depn_Rate),) -> 40 | O31: =IF(O$28>=$E31,MIN($H31-SUM($I31:N31),$H31*Depn_Rate),) -> 40 | P31: =IF(P$28>=$E31,MIN($H31-SUM($I31:O31),$H31*Depn_Rate),) -> 0 | Q31: =IF(Q$28>=$E31,MIN($H31-SUM($I31:P31),$H31*Depn_Rate),) -> 0 | R31: =IF(R$28>=$E31,MIN($H31-SUM($I31:Q31),$H31*Depn_Rate),) -> 0 | S31: =IF(S$28>=$E31,MIN($H31-SUM($I31:R31),$H31*Depn_Rate),) -> 0 | T31: =IF(T$28>=$E31,MIN($H31-SUM($I31:S31),$H31*Depn_Rate),) -> 0 | U31: =IF(U$28>=$E31,MIN($H31-SUM($I31:T31),$H31*Depn_Rate),) -> 0
E32: =ROWS($D$30:$D32) -> 3 | G32: £'000 | H32: 300 | J32: =IF(J$28>=$E32,MIN($H32-SUM($I32:I32),$H32*Depn_Rate),) -> 0 | K32: =IF(K$28>=$E32,MIN($H32-SUM($I32:J32),$H32*Depn_Rate),) -> 0 | L32: =IF(L$28>=$E32,MIN($H32-SUM($I32:K32),$H32*Depn_Rate),) -> 60 | M32: =IF(M$28>=$E32,MIN($H32-SUM($I32:L32),$H32*Depn_Rate),) -> 60 | N32: =IF(N$28>=$E32,MIN($H32-SUM($I32:M32),$H32*Depn_Rate),) -> 60 | O32: =IF(O$28>=$E32,MIN($H32-SUM($I32:N32),$H32*Depn_Rate),) -> 60 | P32: =IF(P$28>=$E32,MIN($H32-SUM($I32:O32),$H32*Depn_Rate),) -> 60 | Q32: =IF(Q$28>=$E32,MIN($H32-SUM($I32:P32),$H32*Depn_Rate),) -> 0 | R32: =IF(R$28>=$E32,MIN($H32-SUM($I32:Q32),$H32*Depn_Rate),) -> 0 | S32: =IF(S$28>=$E32,MIN($H32-SUM($I32:R32),$H32*Depn_Rate),) -> 0 | T32: =IF(T$28>=$E32,MIN($H32-SUM($I32:S32),$H32*Depn_Rate),) -> 0 | U32: =IF(U$28>=$E32,MIN($H32-SUM($I32:T32),$H32*Depn_Rate),) -> 0
E33: =ROWS($D$30:$D33) -> 4 | G33: £'000 | H33: 400 | J33: =IF(J$28>=$E33,MIN($H33-SUM($I33:I33),$H33*Depn_Rate),) -> 0 | K33: =IF(K$28>=$E33,MIN($H33-SUM($I33:J33),$H33*Depn_Rate),) -> 0 | L33: =IF(L$28>=$E33,MIN($H33-SUM($I33:K33),$H33*Depn_Rate),) -> 0 | M33: =IF(M$28>=$E33,MIN($H33-SUM($I33:L33),$H33*Depn_Rate),) -> 80 | N33: =IF(N$28>=$E33,MIN($H33-SUM($I33:M33),$H33*Depn_Rate),) -> 80 | O33: =IF(O$28>=$E33,MIN($H33-SUM($I33:N33),$H33*Depn_Rate),) -> 80 | P33: =IF(P$28>=$E33,MIN($H33-SUM($I33:O33),$H33*Depn_Rate),) -> 80 | Q33: =IF(Q$28>=$E33,MIN($H33-SUM($I33:P33),$H33*Depn_Rate),) -> 80 | R33: =IF(R$28>=$E33,MIN($H33-SUM($I33:Q33),$H33*Depn_Rate),) -> 0 | S33: =IF(S$28>=$E33,MIN($H33-SUM($I33:R33),$H33*Depn_Rate),) -> 0 | T33: =IF(T$28>=$E33,MIN($H33-SUM($I33:S33),$H33*Depn_Rate),) -> 0 | U33: =IF(U$28>=$E33,MIN($H33-SUM($I33:T33),$H33*Depn_Rate),) -> 0
E34: =ROWS($D$30:$D34) -> 5 | G34: £'000 | H34: 500 | J34: =IF(J$28>=$E34,MIN($H34-SUM($I34:I34),$H34*Depn_Rate),) -> 0 | K34: =IF(K$28>=$E34,MIN($H34-SUM($I34:J34),$H34*Depn_Rate),) -> 0 | L34: =IF(L$28>=$E34,MIN($H34-SUM($I34:K34),$H34*Depn_Rate),) -> 0 | M34: =IF(M$28>=$E34,MIN($H34-SUM($I34:L34),$H34*Depn_Rate),) -> 0 | N34: =IF(N$28>=$E34,MIN($H34-SUM($I34:M34),$H34*Depn_Rate),) -> 100 | O34: =IF(O$28>=$E34,MIN($H34-SUM($I34:N34),$H34*Depn_Rate),) -> 100 | P34: =IF(P$28>=$E34,MIN($H34-SUM($I34:O34),$H34*Depn_Rate),) -> 100 | Q34: =IF(Q$28>=$E34,MIN($H34-SUM($I34:P34),$H34*Depn_Rate),) -> 100 | R34: =IF(R$28>=$E34,MIN($H34-SUM($I34:Q34),$H34*Depn_Rate),) -> 100 | S34: =IF(S$28>=$E34,MIN($H34-SUM($I34:R34),$H34*Depn_Rate),) -> 0 | T34: =IF(T$28>=$E34,MIN($H34-SUM($I34:S34),$H34*Depn_Rate),) -> 0 | U34: =IF(U$28>=$E34,MIN($H34-SUM($I34:T34),$H34*Depn_Rate),) -> 0
E35: =ROWS($D$30:$D35) -> 6 | G35: £'000 | H35: 600 | J35: =IF(J$28>=$E35,MIN($H35-SUM($I35:I35),$H35*Depn_Rate),) -> 0 | K35: =IF(K$28>=$E35,MIN($H35-SUM($I35:J35),$H35*Depn_Rate),) -> 0 | L35: =IF(L$28>=$E35,MIN($H35-SUM($I35:K35),$H35*Depn_Rate),) -> 0 | M35: =IF(M$28>=$E35,MIN($H35-SUM($I35:L35),$H35*Depn_Rate),) -> 0 | N35: =IF(N$28>=$E35,MIN($H35-SUM($I35:M35),$H35*Depn_Rate),) -> 0 | O35: =IF(O$28>=$E35,MIN($H35-SUM($I35:N35),$H35*Depn_Rate),) -> 120 | P35: =IF(P$28>=$E35,MIN($H35-SUM($I35:O35),$H35*Depn_Rate),) -> 120 | Q35: =IF(Q$28>=$E35,MIN($H35-SUM($I35:P35),$H35*Depn_Rate),) -> 120 | R35: =IF(R$28>=$E35,MIN($H35-SUM($I35:Q35),$H35*Depn_Rate),) -> 120 | S35: =IF(S$28>=$E35,MIN($H35-SUM($I35:R35),$H35*Depn_Rate),) -> 120 | T35: =IF(T$28>=$E35,MIN($H35-SUM($I35:S35),$H35*Depn_Rate),) -> 0 | U35: =IF(U$28>=$E35,MIN($H35-SUM($I35:T35),$H35*Depn_Rate),) -> 0
E36: =ROWS($D$30:$D36) -> 7 | G36: £'000 | H36: 700 | J36: =IF(J$28>=$E36,MIN($H36-SUM($I36:I36),$H36*Depn_Rate),) -> 0 | K36: =IF(K$28>=$E36,MIN($H36-SUM($I36:J36),$H36*Depn_Rate),) -> 0 | L36: =IF(L$28>=$E36,MIN($H36-SUM($I36:K36),$H36*Depn_Rate),) -> 0 | M36: =IF(M$28>=$E36,MIN($H36-SUM($I36:L36),$H36*Depn_Rate),) -> 0 | N36: =IF(N$28>=$E36,MIN($H36-SUM($I36:M36),$H36*Depn_Rate),) -> 0 | O36: =IF(O$28>=$E36,MIN($H36-SUM($I36:N36),$H36*Depn_Rate),) -> 0 | P36: =IF(P$28>=$E36,MIN($H36-SUM($I36:O36),$H36*Depn_Rate),) -> 140 | Q36: =IF(Q$28>=$E36,MIN($H36-SUM($I36:P36),$H36*Depn_Rate),) -> 140 | R36: =IF(R$28>=$E36,MIN($H36-SUM($I36:Q36),$H36*Depn_Rate),) -> 140 | S36: =IF(S$28>=$E36,MIN($H36-SUM($I36:R36),$H36*Depn_Rate),) -> 140 | T36: =IF(T$28>=$E36,MIN($H36-SUM($I36:S36),$H36*Depn_Rate),) -> 140 | U36: =IF(U$28>=$E36,MIN($H36-SUM($I36:T36),$H36*Depn_Rate),) -> 0
E37: =ROWS($D$30:$D37) -> 8 | G37: £'000 | H37: 800 | J37: =IF(J$28>=$E37,MIN($H37-SUM($I37:I37),$H37*Depn_Rate),) -> 0 | K37: =IF(K$28>=$E37,MIN($H37-SUM($I37:J37),$H37*Depn_Rate),) -> 0 | L37: =IF(L$28>=$E37,MIN($H37-SUM($I37:K37),$H37*Depn_Rate),) -> 0 | M37: =IF(M$28>=$E37,MIN($H37-SUM($I37:L37),$H37*Depn_Rate),) -> 0 | N37: =IF(N$28>=$E37,MIN($H37-SUM($I37:M37),$H37*Depn_Rate),) -> 0 | O37: =IF(O$28>=$E37,MIN($H37-SUM($I37:N37),$H37*Depn_Rate),) -> 0 | P37: =IF(P$28>=$E37,MIN($H37-SUM($I37:O37),$H37*Depn_Rate),) -> 0 | Q37: =IF(Q$28>=$E37,MIN($H37-SUM($I37:P37),$H37*Depn_Rate),) -> 160 | R37: =IF(R$28>=$E37,MIN($H37-SUM($I37:Q37),$H37*Depn_Rate),) -> 160 | S37: =IF(S$28>=$E37,MIN($H37-SUM($I37:R37),$H37*Depn_Rate),) -> 160 | T37: =IF(T$28>=$E37,MIN($H37-SUM($I37:S37),$H37*Depn_Rate),) -> 160 | U37: =IF(U$28>=$E37,MIN($H37-SUM($I37:T37),$H37*Depn_Rate),) -> 160
E38: =ROWS($D$30:$D38) -> 9 | G38: £'000 | H38: 900 | J38: =IF(J$28>=$E38,MIN($H38-SUM($I38:I38),$H38*Depn_Rate),) -> 0 | K38: =IF(K$28>=$E38,MIN($H38-SUM($I38:J38),$H38*Depn_Rate),) -> 0 | L38: =IF(L$28>=$E38,MIN($H38-SUM($I38:K38),$H38*Depn_Rate),) -> 0 | M38: =IF(M$28>=$E38,MIN($H38-SUM($I38:L38),$H38*Depn_Rate),) -> 0 | N38: =IF(N$28>=$E38,MIN($H38-SUM($I38:M38),$H38*Depn_Rate),) -> 0 | O38: =IF(O$28>=$E38,MIN($H38-SUM($I38:N38),$H38*Depn_Rate),) -> 0 | P38: =IF(P$28>=$E38,MIN($H38-SUM($I38:O38),$H38*Depn_Rate),) -> 0 | Q38: =IF(Q$28>=$E38,MIN($H38-SUM($I38:P38),$H38*Depn_Rate),) -> 0 | R38: =IF(R$28>=$E38,MIN($H38-SUM($I38:Q38),$H38*Depn_Rate),) -> 180 | S38: =IF(S$28>=$E38,MIN($H38-SUM($I38:R38),$H38*Depn_Rate),) -> 180 | T38: =IF(T$28>=$E38,MIN($H38-SUM($I38:S38),$H38*Depn_Rate),) -> 180 | U38: =IF(U$28>=$E38,MIN($H38-SUM($I38:T38),$H38*Depn_Rate),) -> 180
E39: =ROWS($D$30:$D39) -> 10 | G39: £'000 | H39: 1000 | J39: =IF(J$28>=$E39,MIN($H39-SUM($I39:I39),$H39*Depn_Rate),) -> 0 | K39: =IF(K$28>=$E39,MIN($H39-SUM($I39:J39),$H39*Depn_Rate),) -> 0 | L39: =IF(L$28>=$E39,MIN($H39-SUM($I39:K39),$H39*Depn_Rate),) -> 0 | M39: =IF(M$28>=$E39,MIN($H39-SUM($I39:L39),$H39*Depn_Rate),) -> 0 | N39: =IF(N$28>=$E39,MIN($H39-SUM($I39:M39),$H39*Depn_Rate),) -> 0 | O39: =IF(O$28>=$E39,MIN($H39-SUM($I39:N39),$H39*Depn_Rate),) -> 0 | P39: =IF(P$28>=$E39,MIN($H39-SUM($I39:O39),$H39*Depn_Rate),) -> 0 | Q39: =IF(Q$28>=$E39,MIN($H39-SUM($I39:P39),$H39*Depn_Rate),) -> 0 | R39: =IF(R$28>=$E39,MIN($H39-SUM($I39:Q39),$H39*Depn_Rate),) -> 0 | S39: =IF(S$28>=$E39,MIN($H39-SUM($I39:R39),$H39*Depn_Rate),) -> 200 | T39: =IF(T$28>=$E39,MIN($H39-SUM($I39:S39),$H39*Depn_Rate),) -> 200 | U39: =IF(U$28>=$E39,MIN($H39-SUM($I39:T39),$H39*Depn_Rate),) -> 200
E40: =ROWS($D$30:$D40) -> 11 | G40: £'000 | H40: 1100 | J40: =IF(J$28>=$E40,MIN($H40-SUM($I40:I40),$H40*Depn_Rate),) -> 0 | K40: =IF(K$28>=$E40,MIN($H40-SUM($I40:J40),$H40*Depn_Rate),) -> 0 | L40: =IF(L$28>=$E40,MIN($H40-SUM($I40:K40),$H40*Depn_Rate),) -> 0 | M40: =IF(M$28>=$E40,MIN($H40-SUM($I40:L40),$H40*Depn_Rate),) -> 0 | N40: =IF(N$28>=$E40,MIN($H40-SUM($I40:M40),$H40*Depn_Rate),) -> 0 | O40: =IF(O$28>=$E40,MIN($H40-SUM($I40:N40),$H40*Depn_Rate),) -> 0 | P40: =IF(P$28>=$E40,MIN($H40-SUM($I40:O40),$H40*Depn_Rate),) -> 0 | Q40: =IF(Q$28>=$E40,MIN($H40-SUM($I40:P40),$H40*Depn_Rate),) -> 0 | R40: =IF(R$28>=$E40,MIN($H40-SUM($I40:Q40),$H40*Depn_Rate),) -> 0 | S40: =IF(S$28>=$E40,MIN($H40-SUM($I40:R40),$H40*Depn_Rate),) -> 0 | T40: =IF(T$28>=$E40,MIN($H40-SUM($I40:S40),$H40*Depn_Rate),) -> 220 | U40: =IF(U$28>=$E40,MIN($H40-SUM($I40:T40),$H40*Depn_Rate),) -> 220
E41: =ROWS($D$30:$D41) -> 12 | G41: £'000 | H41: 1200 | J41: =IF(J$28>=$E41,MIN($H41-SUM($I41:I41),$H41*Depn_Rate),) -> 0 | K41: =IF(K$28>=$E41,MIN($H41-SUM($I41:J41),$H41*Depn_Rate),) -> 0 | L41: =IF(L$28>=$E41,MIN($H41-SUM($I41:K41),$H41*Depn_Rate),) -> 0 | M41: =IF(M$28>=$E41,MIN($H41-SUM($I41:L41),$H41*Depn_Rate),) -> 0 | N41: =IF(N$28>=$E41,MIN($H41-SUM($I41:M41),$H41*Depn_Rate),) -> 0 | O41: =IF(O$28>=$E41,MIN($H41-SUM($I41:N41),$H41*Depn_Rate),) -> 0 | P41: =IF(P$28>=$E41,MIN($H41-SUM($I41:O41),$H41*Depn_Rate),) -> 0 | Q41: =IF(Q$28>=$E41,MIN($H41-SUM($I41:P41),$H41*Depn_Rate),) -> 0 | R41: =IF(R$28>=$E41,MIN($H41-SUM($I41:Q41),$H41*Depn_Rate),) -> 0 | S41: =IF(S$28>=$E41,MIN($H41-SUM($I41:R41),$H41*Depn_Rate),) -> 0 | T41: =IF(T$28>=$E41,MIN($H41-SUM($I41:S41),$H41*Depn_Rate),) -> 0 | U41: =IF(U$28>=$E41,MIN($H41-SUM($I41:T41),$H41*Depn_Rate),) -> 240
E43: Depreciation Charge | G43: £'000 | J43: =SUM(J30:J41) -> 20 | K43: =SUM(K30:K41) -> 60 | L43: 120 | M43: 200 | N43: 300 | O43: 400 | P43: 500 | Q43: 600 | R43: 700 | S43: 800 | T43: 900 | U43: 1000
D46: SUM(OFFSET) Method
J48: =N(I48)+1 -> 1 | K48: =N(J48)+1 -> 2 | L48: 3 | M48: 4 | N48: 5 | O48: 6 | P48: 7 | Q48: 8 | R48: 9 | S48: 10 | T48: 11 | U48: 12
E50: Depreciation Counter | G50: # | J50: =MIN(J48,Economic_Life) -> 1 | K50: 2 | L50: 3 | M50: 4 | N50: 5 | O50: 5 | P50: 5 | Q50: 5 | R50: 5 | S50: 5 | T50: 5 | U50: 5
E52: =E21 -> Capital Expenditure | G52: £'000 | J52: =J21 -> 100 | K52: =K21 -> 200 | L52: 300 | M52: 400 | N52: 500 | O52: 600 | P52: 700 | Q52: 800 | R52: 900 | S52: 1000 | T52: 1100 | U52: 1200
E54: Annual Depreciation | G54: £'000 | H54: =Depn_Rate -> 0.2 | J54: =J52*Depn_Rate -> 20 | K54: 40 | L54: 60 | M54: 80 | N54: 100 | O54: 120 | P54: 140 | Q54: 160 | R54: 180 | S54: 200 | T54: 220 | U54: 240
E56: Depreciation Charge | G56: £'000 | J56: =SUM(OFFSET(J$54,,,,-J50)) -> 20 | K56: =SUM(OFFSET(K$54,,,,-K50)) -> 60 | L56: 120 | M56: 200 | N56: 300 | O56: 400 | P56: 500 | Q56: 600 | R56: 700 | S56: 800 | T56: 900 | U56: 1000
E59: Error Check | G59: [1,0] | I59: =MIN(SUM(J59:U59),1) -> 0 | J59: =(ROUND(J43-J56,Rounding_Accuracy)<>0)*1 -> 0 | K59: 0 | L59: 0 | M59: 0 | N59: 0 | O59: 0 | P59: 0 | Q59: 0 | R59: 0 | S59: 0 | T59: 0 | U59: 0

Sheet Model Parameters
A1: =IF(ISERROR(RIGHT(CELL("filename",A1),LEN(CELL("filename",A1))-FIND("]",CELL("filename",A1)))), "", RIGHT(CELL("filename",A1),LEN(CELL("filename",A1))-FIND("]",CELL("filename",A1)))) -> Model Parameters
A2: =Model_Name -> SP - Using OFFSET for Depreciation.xlsm
A3: Navigator
E4: Error Checks: | I4: =Overall_Error_Check -> 0
B6: =MAX($B$5:$B5)+1 -> 1 | C6: General
C8: Key Inputs
E10: General
E11: Model Name | G11: =IF(ISERROR(OR(FIND("[",CELL("filename",A1)),FIND("]",CELL("filename",A1)))),"",MID(CELL("filename",A1),FIND("[",CELL("filename",A1))+1,FIND("]",CELL("filename",A1))-FIND("[",CELL("filename",A1))-1)) -> SP - Using OFFSET for Depreciation.xlsm
E12: Client Name | G12: ICAEW
B15: =MAX($B$5:$B14)+1 -> 2 | C15: General Range Names
C17: Technical Assumptions
E19: Days in Year | G19: 365
E20: Months in Month | G20: 1
E21: Months in Quarter | G21: 3
E22: Months in Half Yr | G22: 6
E23: Months in Year | G23: 12
E24: Quarters in Year | G24: 4
E26: Rounding Accuracy | G26: 5
E28: Very Large Number | G28: 1e+99
E29: Very Small Number | G29: 1e-08
E31: Thousand | G31: 1000

Sheet Timing
A1: =IF(ISERROR(RIGHT(CELL("filename",A1),LEN(CELL("filename",A1))-FIND("]",CELL("filename",A1)))), "", RIGHT(CELL("filename",A1),LEN(CELL("filename",A1))-FIND("]",CELL("filename",A1)))) -> Timing
A2: =Model_Name -> SP - Using OFFSET for Depreciation.xlsm
A3: Navigator
B4: Error Checks: | F4: =Overall_Error_Check -> 0
J5: =J$7 -> 2017-12-31 | K5: =K$7 -> 2018-12-31 | L5: =L$7 -> 2019-12-31 | M5: =M$7 -> 2020-12-31 | N5: =N$7 -> 2021-12-31 | O5: =O$7 -> 2022-12-31 | P5: 2023-12-31 | Q5: 2024-12-31 | R5: 2025-12-31 | S5: 2026-12-31 | T5: 2027-12-31 | U5: 2028-12-31
C6: Start Date | J6: =IF(J$9=1,Model_Start_Date,I$7+1) -> 2017-01-01 | K6: 2018-01-01 | L6: 2019-01-01 | M6: 2020-01-01 | N6: 2021-01-01 | O6: 2022-01-01 | P6: 2023-01-01 | Q6: 2024-01-01 | R6: 2025-01-01 | S6: 2026-01-01 | T6: 2027-01-01 | U6: 2028-01-01
C7: End Date | J7: =EOMONTH(J$6,MOD(Periodicity+Reporting_Month_Factor-MONTH(J$6),Periodicity)) -> 2017-12-31 | K7: 2018-12-31 | L7: 2019-12-31 | M7: 2020-12-31 | N7: 2021-12-31 | O7: 2022-12-31 | P7: 2023-12-31 | Q7: 2024-12-31 | R7: 2025-12-31 | S7: 2026-12-31 | T7: 2027-12-31 | U7: 2028-12-31
C8: Number of Days | J8: =J7-J6+1 -> 365 | K8: =K7-K6+1 -> 365 | L8: 365 | M8: 366 | N8: 365 | O8: =O7-O6+1 -> 365 | P8: 365 | Q8: 366 | R8: 365 | S8: 365 | T8: 365 | U8: 366
C9: Counter | J9: =N(I$9)+1 -> 1 | K9: =N(J$9)+1 -> 2 | L9: 3 | M9: 4 | N9: 5 | O9: =N(N$9)+1 -> 6 | P9: =N(O$9)+1 -> 7 | Q9: =N(P$9)+1 -> 8 | R9: =N(Q$9)+1 -> 9 | S9: =N(R$9)+1 -> 10 | T9: =N(S$9)+1 -> 11 | U9: =N(T$9)+1 -> 12
B11: =MAX($B$10:$B10)+1 -> 1 | C11: Timing Assumptions
C13: Data (do not change once modelling has commenced)
D15: Model Start Date | H15: =DATE(YEAR(TODAY())+1,1,1) -> 2017-01-01
D17: Number of Months in a Full Period | H17: 12
D19: Example Reporting Month | H19: 12 | I19: ="e.g. "&TEXT(DATE(YEAR(Model_Start_Date)+IF(Example_Reporting_Month<MONTH(Model_Start_Date),1,0),Example_Reporting_Month+1,1)-1,"dd-Mmm-yy") -> e.g. 31-Dec-17
D21: Reporting Month Factor | H21: =MOD(Example_Reporting_Month-1,Periodicity)+1 -> 12
D23: Months per Year | H23: 12

Sheet Error Checks
A1: =IF(ISERROR(RIGHT(CELL("filename",A1),LEN(CELL("filename",A1))-FIND("]",CELL("filename",A1)))), "", RIGHT(CELL("filename",A1),LEN(CELL("filename",A1))-FIND("]",CELL("filename",A1)))) -> Error Checks
A2: =Model_Name -> SP - Using OFFSET for Depreciation.xlsm
A3: Navigator
B4: Error Checks: | F4: =Overall_Error_Check -> 0
B6: =MAX($B$5:$B5)+1 -> 1 | C6: Error Checks
C8: Summary of Errors
D10: Assumptions
E12: Depreciation Reconciles | I12: =HL_Depn_Check -> 0
E17: =C8 -> Summary of Errors | I17: =MIN(1,SUM(I11:I15)) -> 0
